bitfinex-derivatives/quotes_BTCF0:USTF0_20210108
["timestamp","ask_amount","ask_price","bid_price","bid_amount"]
[1610130132470,0.13632608,40283.0,40256.0,0.13632608]
[1610130133269,0.13662891,40283.0,40256.0,0.13632608]
[1610130134977,0.13662891,40283.0,40217.0,0.1569]
[1610130135181,0.13662891,40283.0,40237.0,3.5269]
[1610130136376,0.13662891,40283.0,40248.0,0.13632608]
[1610130137076,0.21132891,40283.0,40248.0,0.13632608]
[1610130137278,0.13662891,40283.0,40248.0,0.13632608]
[1610130137579,0.13662891,40283.0,40237.0,3.5269]
[1610130138382,0.13662891,40283.0,40257.0,0.13632608]
[1610130139185,0.13662891,40283.0,40242.0,0.10235]
[1610130140385,0.13662891,40283.0,40262.0,0.13632608]
[1610130140785,0.13662891,40283.0,40242.0,0.10235]
[1610130141987,0.13662891,40283.0,40282.0,0.00549087]
[1610130141988,0.61142891,40283.0,40282.0,0.00549087]
[1610130142586,0.61142891,40283.0,40282.0,9.087e-05]
[1610130142787,0.61142891,40283.0,40242.0,0.10235]
[1610130142986,0.61142891,40283.0,40223.0,3.0265]
[1610130143190,0.00030305,40282.0,40223.0,3.0265]
[1610130144390,0.00030305,40282.0,40239.0,0.13632608]
[1610130146491,0.00030305,40282.0,40230.0,0.08676]
[1610130146492,0.00030305,40282.0,40261.0,0.13632608]
[1610130146896,0.11004,40287.0,40261.0,0.13632608]
[1610130147093,0.12832322,40297.0,40261.0,0.13632608]
[1610130147593,0.00030295,40296.0,40261.0,0.13632608]
[1610130147993,0.11514,40297.0,40261.0,0.13632608]
[1610130148394,0.40850166,40311.0,40279.0,0.13632608]
[1610130148595,0.409888,40312.0,40279.0,0.25576608]
[1610130148794,0.00030285,40308.0,40279.0,0.25576608]
[1610130148995,0.41081692,40320.0,40279.0,0.25576608]
[1610130149396,0.41169206,40323.0,40279.0,0.25576608]
[1610130149595,0.00030278,40318.0,40279.0,0.25576608]
[1610130149796,0.09572,40318.0,40279.0,0.25576608]
[1610130149995,0.00030276,40317.0,40279.0,0.25576608]
[1610130150396,0.09572,40318.0,40296.0,0.13632608]
[1610130150896,0.00030273,40317.0,40279.0,0.11944]
[1610130151596,0.01345628,40314.0,40279.0,0.11944]
[1610130151896,0.01345628,40314.0,40259.0,0.12099]
[1610130152497,0.01345104,40313.0,40273.0,0.13632608]
[1610130152996,0.01346254,40311.0,40273.0,0.13632608]
[1610130153397,0.41348157,40312.0,40273.0,0.13632608]
[1610130153597,0.41348157,40312.0,40273.0,0.24918608]
[1610130153897,0.01349767,40313.0,40273.0,0.24918608]
[1610130154098,0.0135025,40315.0,40273.0,0.24918608]
[1610130154597,0.0135025,40315.0,40288.0,0.13632608]
[1610130154898,0.41472479,40316.0,40288.0,0.22784608]
[1610130155298,0.57713098,40318.0,40288.0,0.22784608]
[1610130155299,0.01353287,40317.0,40288.0,0.22784608]
[1610130155699,0.4162034,40316.0,40288.0,0.22784608]
[1610130156201,0.41661505,40317.0,40288.0,0.22784608]
[1610130156598,0.41661505,40317.0,40316.0,0.13632608]
[1610130156799,0.09572,40318.0,40316.0,0.13632608]
[1610130157002,0.01361666,40327.0,40316.0,0.13632608]
[1610130157399,0.48548114,40330.0,40316.0,0.22414608]
[1610130157400,0.01363524,40329.0,40316.0,0.22414608]
[1610130157902,0.01367507,40335.0,40316.0,0.22414608]
[1610130158299,0.48756367,40338.0,40316.0,0.22414608]
[1610130158300,0.01368716,40337.0,40316.0,0.22414608]
[1610130158501,0.01369702,40339.0,40334.0,0.13632608]
[1610130158800,0.01369702,40339.0,40334.0,0.21358608]
[1610130159001,0.01370248,40340.0,40334.0,0.21207337]
[1610130159604,0.01369825,40342.0,40334.0,0.21207337]
[1610130160002,0.01369875,40344.0,40334.0,0.21207337]
[1610130160603,0.01369875,40344.0,40341.0,0.13632608]
[1610130160805,0.0136807,40345.0,40334.0,0.07726]
[1610130161205,0.01365868,40343.0,40334.0,0.07726]
[1610130161607,0.01365595,40341.0,40334.0,0.07726]
[1610130161808,0.01367705,40344.0,40334.0,0.07726]
[1610130162306,0.01367939,40345.0,40334.0,0.07726]
[1610130162506,0.13632608,40344.0,40342.0,0.13632608]
[1610130163207,0.48795556,40351.0,40342.0,0.13632608]
[1610130163208,0.01369436,40350.0,40342.0,0.13632608]
[1610130163809,0.01370025,40352.0,40342.0,0.13632608]
[1610130164008,0.01370663,40353.0,40342.0,0.13632608]
[1610130164508,0.40726326,40354.0,40334.0,0.07726]
[1610130164509,0.13632608,40343.0,40335.0,0.13632608]
[1610130165311,0.13632608,40343.0,40334.0,0.07726]
[1610130165511,0.13632608,40343.0,40316.0,0.08782]
[1610130165708,0.13632608,40343.0,40313.0,0.0751]
[1610130166613,0.13632608,40343.0,40340.0,0.13632608]
[1610130167715,0.13632608,40343.0,40336.0,0.12519]
[1610130168615,0.13632608,40337.0,40336.0,0.12519]
[1610130172126,0.13632608,40337.0,40333.0,0.0736]
[1610130173736,0.00692495,40350.0,40333.0,0.0736]
[1610130173937,0.00693226,40351.0,40333.0,0.0736]
[1610130174126,0.42487089,40343.0,40333.0,0.16046]
[1610130174527,0.42487089,40343.0,40342.0,0.13632608]
[1610130174931,0.42487089,40343.0,40342.0,0.21798608]
[1610130175528,0.42487089,40343.0,40342.0,0.08166]
[1610130176529,0.42487089,40343.0,40342.0,0.21798608]
[1610130178630,0.42487089,40343.0,40342.0,0.29168608]
[1610130180132,0.42487089,40343.0,40342.0,0.21798608]
[1610130180732,0.42487089,40343.0,40342.0,1.71798608]
[1610130181133,0.02517089,40343.0,40342.0,1.79178608]
[1610130181334,0.26292993,40368.0,40342.0,1.79178608]
[1610130181544,0.11991,40373.0,40342.0,1.79178608]
[1610130181737,0.01386115,40374.0,40342.0,1.79178608]
[1610130181937,0.49541758,40386.0,40342.0,1.79178608]
[1610130182436,0.00030222,40385.0,40342.0,1.79178608]
[1610130182738,1.06129658,40407.0,40342.0,1.79178608]
[1610130182739,0.49660484,40399.0,40384.0,0.13632608]
[1610130183038,0.49806161,40409.0,40384.0,0.21608608]
[1610130183236,0.49806161,40409.0,40385.0,1.5]
[1610130183237,0.00030217,40398.0,40385.0,1.5]
[1610130183469,0.49800245,40415.0,40389.0,2.9502]
[1610130183636,0.0003021,40408.0,40389.0,2.9502]
[1610130183836,0.0003021,40414.0,40390.0,1.5752]
[1610130184036,0.00030208,40407.0,40390.0,1.5752]
[1610130184439,0.00030206,40413.0,40390.0,1.5752]
[1610130184637,0.13632608,40426.0,40412.0,0.13632608]
[1610130184937,0.13632608,40426.0,40412.0,0.24806608]
[1610130185237,0.000302,40425.0,40412.0,0.24806608]
[1610130185441,0.000302,40425.0,40412.0,0.11174]
[1610130186037,0.000302,40425.0,40413.0,0.074]
[1610130186239,0.02990544,40431.0,40413.0,0.074]
[1610130186438,0.10903,40432.0,40413.0,0.074]
[1610130186644,0.10903,40432.0,40431.0,0.13632608]
[1610130187041,0.10933193,40432.0,40431.0,0.13632608]
[1610130187242,0.00030193,40432.0,40431.0,0.13632608]
[1610130187442,0.00030193,40432.0,40431.0,0.1348166]
[1610130187842,0.02990108,40453.0,40431.0,0.1348166]
[1610130188041,0.9695691,40474.0,40431.0,0.1348166]
[1610130188042,0.00030191,40432.0,40431.0,0.1348166]
[1610130188346,0.0298987,40452.0,40431.0,0.2094166]
[1610130188541,0.00030188,40432.0,40431.0,0.16067]
[1610130188941,0.02989677,40452.0,40431.0,0.16067]
[1610130189142,0.00030183,40432.0,40431.0,0.16067]
[1610130189444,0.00030183,40451.0,40431.0,0.16067]
[1610130189642,0.13632608,40456.0,40431.0,0.16067]
[1610130190241,0.00030179,40455.0,40431.0,0.08607]
[1610130190444,0.11537179,40455.0,40431.0,0.08607]
[1610130190642,0.13632608,40432.0,40431.0,0.08607]
[1610130191643,0.22452608,40432.0,40398.0,3.2266]
[1610130192645,0.22452608,40432.0,40424.0,0.13632608]
[1610130192845,0.0882,40432.0,40424.0,0.13632608]
[1610130193946,0.0882,40432.0,40425.0,0.0752]
[1610130194146,0.0882,40432.0,40424.0,0.13632608]
[1610130194447,0.0882,40432.0,40409.0,3.08674]
[1610130194654,0.13632608,40420.0,40410.0,0.13632608]
[1610130195050,0.13632608,40420.0,40409.0,2.9618]
[1610130195249,0.0882,40432.0,40409.0,2.9618]
[1610130195852,0.00030196,40431.0,40409.0,2.9618]
[1610130196054,0.00030196,40431.0,40402.0,0.1049]
[1610130196653,0.00030196,40431.0,40399.0,0.13632608]
[1610130196654,0.13632608,40403.0,40399.0,0.13632608]
[1610130196852,0.09569,40413.0,40399.0,0.13632608]
[1610130198656,0.13632608,40404.0,40399.0,0.13632608]
[1610130199757,0.09569,40413.0,40399.0,0.13632608]
[1610130200457,0.0882,40432.0,40399.0,0.13632608]
[1610130200655,1.0,40434.0,40421.0,0.13632608]
[1610130200856,0.00030199,40431.0,40421.0,0.13632608]
[1610130201056,0.10118,40431.0,40404.0,0.10828]
[1610130201479,3.572,40425.0,40404.0,0.10828]
[1610130201856,0.0003021,40424.0,40365.0,2.8995]
[1610130202758,0.03052025,40424.0,40365.0,2.8995]
[1610130203775,2.8465,40410.0,40336.0,3.9068]
[1610130204159,2.92813,40410.0,40336.0,3.9068]
[1610130204368,0.03052849,40409.0,40336.0,3.9068]
[1610130204569,0.31052849,40409.0,40336.0,3.9068]
[1610130204764,0.31052849,40409.0,40345.0,0.13632608]
[1610130204765,0.13632608,40368.0,40345.0,0.13632608]
[1610130206162,0.13632608,40368.0,40336.0,3.9068]
[1610130206366,0.13632608,40368.0,40312.0,0.0748]
[1610130206764,3.9259,40379.0,40312.0,0.0748]
[1610130206966,0.12365,40384.0,40291.0,1.7913]
[1610130207168,0.00030233,40378.0,40317.0,3.0137]
[1610130207364,0.00030233,40378.0,40319.0,0.0745]
[1610130207569,0.00030231,40383.0,40319.0,0.0745]
[1610130207766,0.00030231,40377.0,40342.0,3.3054]
[1610130207966,0.00030228,40382.0,40343.0,0.0749]
[1610130208166,0.00030228,40382.0,40343.0,0.18503]
[1610130208367,0.12365,40384.0,40343.0,0.18503]
[1610130208567,0.75849212,40428.0,40343.0,0.18503]
[1610130208568,0.0003022,40381.0,40343.0,1.68503]
[1610130208767,0.59688802,40424.0,40343.0,1.68503]
[1610130209169,0.69879945,40431.0,40368.0,3.7155]
[1610130209468,0.00030213,40423.0,40368.0,3.80256]
[1610130209668,0.0003021,40430.0,40369.0,1.5]
[1610130209868,0.00030204,40422.0,40369.0,1.5]
[1610130210068,0.00030201,40429.0,40369.0,1.5]
[1610130210470,0.10118,40431.0,40369.0,1.5]
[1610130210471,0.00030198,40421.0,40369.0,1.5]
[1610130210768,0.00030196,40428.0,40420.0,0.13632608]
[1610130210968,0.13632608,40430.0,40420.0,0.13632608]
[1610130211172,0.00030194,40427.0,40412.0,0.12003]
[1610130211471,0.00030194,40429.0,40412.0,0.12003]
[1610130211668,0.00030194,40426.0,40412.0,0.12003]
[1610130212167,0.00030196,40425.0,40412.0,0.12003]
[1610130212570,0.00030196,40430.0,40412.0,0.12003]
[1610130212770,0.13632608,40429.0,40428.0,0.13632608]
[1610130213069,0.00030196,40429.0,40428.0,0.13632608]
[1610130213271,0.00030196,40429.0,40428.0,0.13481645]
[1610130213771,0.00030196,40430.0,40428.0,0.13481645]
[1610130213973,0.00030196,40429.0,40428.0,0.13481645]
[1610130214471,0.00030196,40430.0,40412.0,0.12003]
[1610130214672,0.13632608,40413.0,40405.0,0.13632608]
[1610130215275,0.00030202,40412.0,40405.0,0.13632608]
[1610130215993,0.00030202,40411.0,40405.0,0.13632608]
[1610130216477,0.00030202,40418.0,40405.0,0.13632608]
[1610130216676,0.00030202,40418.0,40417.0,0.13632608]
[1610130216876,0.08751,40419.0,40417.0,0.13632608]
[1610130217077,0.00030201,40418.0,40417.0,0.13632608]
[1610130217777,0.00030195,40418.0,40417.0,0.13632608]
[1610130218175,0.10118,40431.0,40417.0,0.13632608]
[1610130218176,0.00030197,40430.0,40417.0,0.13632608]
[1610130218477,0.00030197,40418.0,40417.0,0.13632608]
[1610130218676,0.11947,40422.0,40417.0,0.13632608]
[1610130218876,0.00030197,40418.0,40417.0,0.13632608]
[1610130219080,0.00030197,40421.0,40417.0,0.13632608]
[1610130220177,0.00030197,40421.0,40395.0,3.86558]
[1610130220781,0.00030197,40421.0,40420.0,0.13632608]
[1610130221883,0.00030194,40421.0,40420.0,0.13632608]
[1610130222082,0.00030192,40430.0,40420.0,0.13632608]
[1610130222281,0.00030192,40421.0,40420.0,0.13632608]
[1610130222582,0.00030192,40429.0,40420.0,0.13632608]
[1610130222983,0.10118,40431.0,40420.0,0.13632608]
[1610130222984,0.00030192,40421.0,40420.0,0.13632608]
[1610130223182,0.0003019,40428.0,40420.0,0.13632608]
[1610130223384,0.0003019,40421.0,40420.0,0.13632608]
[1610130223583,0.00030188,40427.0,40420.0,0.13632608]
[1610130223984,0.00030188,40439.0,40420.0,0.13632608]
[1610130224185,0.00030188,40426.0,40420.0,0.13632608]
[1610130224384,0.00030186,40438.0,40420.0,0.13632608]
[1610130224784,0.00030184,40439.0,40437.0,0.13632608]
[1610130225085,0.13632608,40456.0,40437.0,0.13632608]
[1610130225284,0.00030182,40438.0,40437.0,0.13632608]
[1610130225484,0.00030179,40454.0,40437.0,0.13632608]
[1610130225684,0.13362787,40456.0,40437.0,0.13632608]
[1610130226185,0.00030178,40455.0,40437.0,0.13632608]
[1610130226688,0.00030178,40455.0,40451.0,0.13632608]
[1610130227085,0.00030182,40461.0,40451.0,0.13632608]
[1610130227486,0.00030182,40454.0,40451.0,0.13481729]
[1610130227687,0.00030182,40460.0,40451.0,0.13481729]
[1610130227887,0.00030182,40453.0,40451.0,0.13481729]
[1610130228087,0.0003018,40459.0,40444.0,0.09416]
[1610130228487,0.0003018,40461.0,40444.0,0.09416]
[1610130228788,0.08637,40462.0,40444.0,0.09416]
[1610130228789,0.0003018,40458.0,40446.0,0.13632608]
[1610130228987,0.00030182,40460.0,40446.0,0.13632608]
[1610130229289,0.00030182,40457.0,40446.0,0.13632608]
[1610130229488,0.00030182,40459.0,40446.0,0.13632608]
[1610130229688,0.0003018,40456.0,40446.0,0.13632608]
[1610130229988,0.00030181,40455.0,40446.0,0.13632608]
[1610130230688,0.13632608,40447.0,40436.0,0.13632608]
[1610130231090,0.00030181,40446.0,40436.0,0.13632608]
[1610130232391,0.13632608,40447.0,40436.0,0.13632608]
[1610130232691,0.13632608,40447.0,40444.0,0.13632608]
[1610130234192,0.00030185,40446.0,40444.0,0.13632608]
[1610130236398,0.13632608,40447.0,40444.0,0.13632608]
[1610130236604,0.13632608,40447.0,40435.0,0.10749]
[1610130236803,0.13632608,40447.0,40444.0,0.11299]
[1610130237100,0.00030183,40446.0,40444.0,0.11299]
[1610130237398,0.13632608,40447.0,40444.0,0.11299]
[1610130237799,0.50375851,40450.0,40444.0,0.11299]
[1610130238199,0.00030181,40449.0,40444.0,0.11299]
[1610130238400,0.00030181,40449.0,40444.0,0.11148117]
[1610130238799,0.00030181,40451.0,40450.0,0.13632608]
[1610130239000,0.50413957,40452.0,40450.0,0.13632608]
[1610130239199,0.0003018,40451.0,40450.0,0.13632608]
[1610130239601,0.50520775,40452.0,40450.0,0.13632608]
[1610130239800,0.0003018,40451.0,40450.0,0.13632608]
[1610130240500,0.00030177,40454.0,40450.0,0.13632608]
[1610130240702,0.00030177,40451.0,40450.0,0.13632608]
[1610130240901,0.13632608,40451.0,40450.0,0.13632608]
[1610130241101,0.13632608,40451.0,40444.0,0.11148117]
[1610130241703,0.13632608,40451.0,40438.0,3.7183]
[1610130242705,0.64070934,40451.0,40438.0,3.7183]
[1610130242905,0.64070934,40451.0,40450.0,0.13632608]
[1610130243105,0.73122062,40451.0,40450.0,0.13632608]
[1610130243707,0.73122062,40451.0,40440.0,0.0891]
[1610130243908,1.34710335,40451.0,40442.0,3.4365]
[1610130244308,0.50342855,40445.0,40442.0,3.4365]
[1610130244711,0.50274496,40443.0,40442.0,3.4365]
[1610130244908,0.63907104,40443.0,40442.0,3.4365]
[1610130245308,0.50274496,40443.0,40442.0,3.4365]
[1610130245510,0.50239027,40445.0,40442.0,3.4365]
[1610130246209,0.50239027,40445.0,40429.0,0.12762]
[1610130246411,0.50215539,40444.0,40429.0,0.12762]
[1610130246810,0.50198788,40446.0,40445.0,0.13632608]
[1610130247214,0.50228964,40446.0,40445.0,0.13632608]
[1610130247413,0.00030176,40446.0,40445.0,0.13632608]
[1610130248911,0.13632608,40448.0,40445.0,0.13632608]
[1610130249212,0.13632608,40448.0,40445.0,0.13481737]
[1610130249411,0.00030175,40447.0,40445.0,0.13481737]
[1610130249612,0.50212524,40450.0,40445.0,0.13481737]
[1610130249815,0.50185614,40452.0,40446.0,3.1416]
[1610130250212,0.61413633,40461.0,40446.0,3.1416]
[1610130250613,0.61525061,40468.0,40446.0,3.1416]
[1610130250812,0.61525061,40468.0,40467.0,0.13632608]
[1610130251013,0.11526,40471.0,40467.0,0.13632608]
[1610130251014,0.73092506,40471.0,40467.0,0.13632608]
[1610130251214,0.00030158,40468.0,40467.0,2.94642608]
[1610130251414,0.00030158,40470.0,40467.0,2.94642608]
[1610130251814,0.57944314,40474.0,40467.0,2.94642608]
[1610130252015,0.61683179,40483.0,40468.0,0.00024007]
[1610130252214,0.0003015,40473.0,40468.0,0.00024007]
[1610130252714,0.88434243,40497.0,40468.0,0.00024007]
[1610130252715,0.00030147,40472.0,40468.0,0.00024007]
[1610130253016,0.09857,40497.0,40468.0,0.00024007]
[1610130253017,0.13632608,40490.0,40468.0,0.00024007]
[1610130253415,0.00030147,40471.0,40468.0,0.00024007]
[1610130253622,0.00030147,40489.0,40468.0,0.00024007]
[1610130253817,0.13632608,40490.0,40468.0,0.00024007]
[1610130253818,0.13632608,40490.0,40468.0,0.07314007]
[1610130254018,0.13632608,40490.0,40468.0,0.00024007]
[1610130254217,0.00030146,40488.0,40468.0,0.00024007]
[1610130254421,0.00030146,40489.0,40468.0,0.00024007]
[1610130254617,0.70189989,40500.0,40468.0,0.00024007]
[1610130254618,0.00030144,40487.0,40482.0,3.0696]
[1610130254818,0.0003014,40488.0,40486.0,0.13632608]
[1610130255218,0.0003014,40502.0,40486.0,0.25142608]
[1610130255419,0.701244,40503.0,40486.0,0.25142608]
[1610130255621,0.70173012,40506.0,40486.0,0.25142608]
[1610130255821,0.00030137,40501.0,40486.0,0.25142608]
[1610130256021,0.00030137,40505.0,40486.0,0.25142608]
[1610130256222,1.32707391,40514.0,40486.0,0.25142608]
[1610130256423,0.08219,40514.0,40486.0,0.25142608]
[1610130256626,0.7022459,40519.0,40507.0,3.22861138]
[1610130256825,0.70357408,40527.0,40518.0,0.13632608]
[1610130257026,0.68447408,40527.0,40518.0,0.13632608]
[1610130257529,0.13632608,40548.0,40518.0,0.13632608]
[1610130257726,0.13632608,40548.0,40519.0,3.0749]
[1610130258028,0.00030108,40547.0,40519.0,3.0749]
[1610130258228,0.08213108,40547.0,40519.0,3.0749]
[1610130258526,0.00030105,40546.0,40519.0,3.0749]
[1610130258826,0.00030105,40546.0,40532.0,0.13632608]
[1610130259427,0.08183,40547.0,40532.0,0.13632608]
[1610130260631,0.0742,40546.0,40532.0,0.13632608]
[1610130260833,0.0742,40546.0,40543.0,0.13632608]
[1610130261031,0.08183,40547.0,40543.0,0.13632608]
[1610130261232,0.08183,40547.0,40543.0,0.13482091]
[1610130261633,0.08183,40547.0,40519.0,0.0735]
[1610130261834,0.08183,40547.0,40515.0,0.08875]
[1610130262134,0.08183,40547.0,40514.0,3.9582]
[1610130263134,0.0749,40546.0,40514.0,3.9582]
[1610130263335,0.0749,40546.0,40506.0,0.12754]
[1610130263534,0.00030109,40545.0,40506.0,0.12754]
[1610130263734,0.00030109,40545.0,40498.0,3.4723]
[1610130264335,0.09845,40546.0,40498.0,3.4723]
[1610130264538,0.09845,40546.0,40499.0,0.075]
[1610130264836,0.0003011,40545.0,40523.0,0.13632608]
[1610130265036,0.09845,40546.0,40523.0,0.13632608]
[1610130265636,0.00030111,40545.0,40509.0,0.09005]
[1610130266737,1.0,40510.0,40509.0,0.09005]
[1610130266938,1.13632608,40510.0,40477.0,0.13632608]
[1610130267638,0.00030134,40509.0,40477.0,0.13632608]
[1610130268339,1.13632608,40510.0,40478.0,0.0747]
[1610130268843,0.00030139,40509.0,40472.0,0.13632608]
[1610130269345,0.00030141,40510.0,40472.0,0.13632608]
[1610130269541,0.00030141,40508.0,40472.0,0.13632608]
[1610130269942,0.00030141,40509.0,40472.0,0.13632608]
[1610130270240,0.00030141,40507.0,40468.0,2.9132]
[1610130270442,0.00030143,40508.0,40468.0,2.9132]
[1610130270642,0.00030143,40506.0,40468.0,2.9132]
[1610130270941,0.13632608,40469.0,40468.0,2.9132]
[1610130271142,0.21850608,40469.0,40468.0,2.9132]
[1610130271541,0.21040608,40469.0,40468.0,2.9132]
[1610130273444,0.10748,40469.0,40468.0,2.9132]
[1610130274949,0.10748,40469.0,40468.0,3.04952608]
[1610130276151,0.13632608,40470.0,40468.0,3.04952608]
[1610130276851,0.12079,40511.0,40468.0,3.04952608]
[1610130277051,0.12079,40511.0,40482.0,0.13632608]
[1610130277254,0.00030141,40510.0,40482.0,0.13632608]
[1610130277551,0.11301,40510.0,40482.0,0.13632608]
[1610130277952,0.00030139,40509.0,40482.0,0.13632608]
[1610130278953,0.13632608,40492.0,40491.0,0.13632608]
[1610130279354,0.25330608,40492.0,40491.0,0.13632608]
[1610130279556,0.25330608,40492.0,40451.0,0.08975]
[1610130279754,0.11698,40492.0,40453.0,3.6965]
[1610130280256,0.14336066,40523.0,40453.0,3.6965]
[1610130280456,3.1837,40526.0,40453.0,3.6965]
[1610130280860,0.00030128,40522.0,40453.0,3.6965]
[1610130281158,0.00030128,40525.0,40453.0,3.6965]
[1610130281356,0.00030128,40521.0,40453.0,3.6965]
[1610130281555,0.00030128,40524.0,40453.0,3.6965]
[1610130281756,0.00030128,40520.0,40453.0,3.6965]
[1610130282158,0.00030128,40525.0,40453.0,3.6965]
[1610130282358,0.00030128,40519.0,40453.0,3.6965]
[1610130282558,0.08308,40527.0,40454.0,1.5]
[1610130282559,0.00030128,40524.0,40454.0,1.5]
[1610130282760,0.00030128,40524.0,40466.0,3.0269]
[1610130282964,0.13632608,40510.0,40509.0,0.13632608]
[1610130283360,0.24740734,40510.0,40509.0,0.13632608]
[1610130283659,0.24710608,40510.0,40509.0,0.13632608]
[1610130284261,0.11078,40510.0,40509.0,0.13632608]
[1610130284461,0.08308,40527.0,40509.0,0.13632608]
[1610130284862,0.70569147,40545.0,40509.0,0.13632608]
[1610130285064,0.00030114,40526.0,40524.0,0.13632608]
[1610130285261,0.00030114,40544.0,40524.0,0.13632608]
[1610130285464,0.11008,40531.0,40524.0,0.13632608]
[1610130285666,0.00030114,40525.0,40524.0,0.13632608]
[1610130285865,0.00030114,40530.0,40524.0,0.13632608]
[1610130286063,0.00030114,40525.0,40524.0,0.13632608]
[1610130286263,0.00030114,40529.0,40524.0,0.13632608]
[1610130286665,0.00030114,40530.0,40524.0,0.13632608]
[1610130286966,0.13632608,40525.0,40524.0,0.13632608]
[1610130287169,0.13632608,40525.0,40505.0,0.12289]
[1610130287366,0.13662722,40525.0,40505.0,0.12289]
[1610130287666,0.00030114,40524.0,40505.0,0.12289]
[1610130288370,0.00030114,40524.0,40480.0,2.8854]
[1610130288577,0.00030114,40524.0,40466.0,0.07698]
[1610130288768,3.9163,40515.0,40457.0,3.0602]
[1610130288974,4.01521,40515.0,40486.0,0.13632608]
[1610130289368,0.00030131,40514.0,40486.0,0.13632608]
[1610130289567,0.00030131,40514.0,40472.0,0.07778]
[1610130290770,0.54276779,40514.0,40472.0,0.07778]
[1610130290972,0.54276779,40514.0,40485.0,0.13632608]
[1610130291170,0.00030135,40513.0,40485.0,0.13632608]
[1610130291771,0.00030135,40513.0,40472.0,0.07778]
[1610130291972,0.00030135,40513.0,40457.0,3.0602]
[1610130292272,0.02924121,40513.0,40457.0,3.0602]
[1610130292574,0.73498788,40513.0,40457.0,3.0602]
[1610130292974,0.13632608,40474.0,40473.0,0.13632608]
[1610130293775,0.11011,40477.0,40473.0,0.13632608]
[1610130295980,0.13632608,40485.0,40473.0,0.13632608]
[1610130296979,0.13632608,40485.0,40484.0,0.13632608]
[1610130297287,0.2714,40511.0,40484.0,0.13632608]
[1610130297681,0.00030126,40510.0,40484.0,0.13632608]
[1610130298089,0.00030126,40510.0,40496.0,3.7851]
[1610130298391,0.00030115,40514.0,40496.0,0.09425]
[1610130298584,0.0741,40513.0,40496.0,0.09425]
[1610130299081,0.11049,40521.0,40496.0,0.09425]
[1610130299683,0.13632608,40517.0,40496.0,0.09425]
[1610130300086,0.13632608,40517.0,40479.0,0.10543]
[1610130300087,0.07470114,40516.0,40479.0,0.10543]
[1610130300684,0.00030119,40515.0,40479.0,0.10543]
[1610130301384,0.54780119,40515.0,40479.0,0.10543]
[1610130301587,0.54780119,40515.0,40482.0,0.13632608]
[1610130301785,0.00030127,40514.0,40482.0,0.13632608]
[1610130302186,0.00030127,40514.0,40479.0,0.10543]
[1610130302492,0.00030127,40514.0,40464.0,3.3375]
[1610130303087,0.00030127,40514.0,40465.0,0.00023445]
[1610130303590,0.13632608,40481.0,40473.0,0.13632608]
[1610130303889,0.22674608,40481.0,40465.0,0.00023445]
[1610130304089,0.22674608,40481.0,40444.0,3.0055]
[1610130304791,0.22674608,40481.0,40445.0,0.00023448]
[1610130304993,0.22674608,40481.0,40445.0,0.11245448]
[1610130304994,0.00030135,40480.0,40445.0,0.11245448]
[1610130305391,0.22674608,40481.0,40446.0,0.00023453]
[1610130305590,0.09042,40481.0,40459.0,0.13632608]
[1610130306592,0.09042,40481.0,40445.0,0.11222]
[1610130306993,0.00030143,40480.0,40446.0,0.00023457]
[1610130307393,0.00030143,40480.0,40444.0,3.0055]
[1610130307592,0.0736,40479.0,40448.0,0.13632608]
[1610130307793,0.00030143,40480.0,40448.0,0.13632608]
[1610130307994,0.62959572,40479.0,40448.0,0.13632608]
[1610130308394,0.63058395,40478.0,40448.0,0.13632608]
[1610130308995,0.70374774,40479.0,40448.0,0.13632608]
[1610130309200,0.09042,40481.0,40448.0,0.13632608]
[1610130309395,0.63116957,40482.0,40455.0,3.0753]
[1610130309596,0.63116957,40482.0,40477.0,0.13632608]
[1610130309895,0.35506696,40485.0,40477.0,0.13632608]
[1610130310296,0.35506696,40485.0,40455.0,3.0753]
[1610130310495,0.45771696,40485.0,40455.0,3.0753]
[1610130310796,0.45771696,40485.0,40456.0,0.00023448]
[1610130311199,0.45771696,40485.0,40449.0,0.00023448]
[1610130311397,0.0747,40484.0,40449.0,0.00023448]
[1610130311696,0.13632608,40457.0,40454.0,0.13632608]
[1610130312298,0.13632608,40457.0,40431.0,2.9014]
[1610130312698,0.13632608,40457.0,40434.0,0.0732]
[1610130312898,0.0741,40456.0,40440.0,0.00023455]
[1610130313601,0.0741,40456.0,40455.0,0.13632608]
[1610130314404,0.13632608,40457.0,40455.0,0.13632608]
[1610130314807,0.13632608,40457.0,40439.0,0.10524]
[1610130315018,0.13632608,40457.0,40400.0,1.5]
[1610130315309,0.13632608,40457.0,40440.0,0.00023907]
[1610130315510,0.13632608,40457.0,40430.0,0.08803]
[1610130315807,0.13632608,40457.0,40445.0,0.13632608]
[1610130316207,0.13632608,40457.0,40446.0,0.00023909]
[1610130316610,0.0747,40456.0,40446.0,0.00023909]
[1610130317008,0.0747,40456.0,40445.0,0.13632608]
[1610130317209,0.13632608,40457.0,40430.0,0.08803]
[1610130317609,0.13632608,40457.0,40431.0,0.00023909]
[1610130317809,0.13632608,40440.0,40431.0,0.00023909]
[1610130318509,0.13632608,40440.0,40417.0,0.00023912]
[1610130319810,0.09552,40442.0,40427.0,0.13632608]
[1610130320013,0.09552,40442.0,40417.0,0.00023912]
[1610130320014,0.09552,40442.0,40413.0,0.10657]
[1610130320415,0.53822,40442.0,40413.0,0.10657]
[1610130320614,0.53822,40442.0,40414.0,0.00023919]
[1610130321013,0.53822,40442.0,40404.0,0.1147]
[1610130321718,0.13632608,40411.0,40404.0,0.1147]
[1610130322115,0.08798,40426.0,40404.0,0.1147]
[1610130323215,0.08798,40426.0,40405.0,0.0002392]
[1610130323815,0.08798,40426.0,40415.0,0.13632608]
[1610130325719,0.13632608,40436.0,40433.0,0.13632608]
[1610130325920,0.11862,40454.0,40433.0,0.13632608]
[1610130326219,0.50766134,40462.0,40433.0,0.23571608]
[1610130326720,0.50869635,40471.0,40433.0,0.23571608]
[1610130327119,0.50873612,40477.0,40433.0,0.23571608]
[1610130327520,0.0739,40478.0,40433.0,0.23571608]
[1610130327920,0.0739,40478.0,40434.0,0.00023908]
[1610130328421,0.5816627,40478.0,40450.0,0.13632608]
[1610130328721,0.50741536,40476.0,40450.0,0.13632608]
[1610130329019,0.59322536,40476.0,40450.0,0.13632608]
[1610130329222,0.50729123,40474.0,40450.0,0.13632608]
[1610130329621,0.50729123,40474.0,40433.0,0.09939]
[1610130329925,0.50745135,40472.0,40433.0,0.09939]
[1610130330320,0.00030149,40471.0,40434.0,0.00023913]
[1610130330621,0.50735099,40468.0,40434.0,0.00023913]
[1610130330822,0.50713834,40466.0,40434.0,0.00023913]